[Event "79th UKR-ch Women 2019"]
[Site "Lutsk"]
[Date "2019.12.13"]
[Round "4.5"]
[White "Rakhmangulova, Anastasiya"]
[Black "Osmak, Iulija"]
[Result "0-1"]
[ECO "C77"]
[WhiteElo "2215"]
[BlackElo "2388"]
[Annotator "NA"]
[PlyCount "42"]
[EventDate "2019.12.10"]
[EventType "tourn"]
[EventCountry "UKR"]
[SourceTitle "playchess.com"]
[Source "ChessBase"]
[SourceQuality "1"]
[TimeControl "40/5400+30:1800+30"]

1. e4 {[%emt 0:00:00]} e5 {[%emt 0:00:00]} 2. Nf3 {[%emt 0:00:00]} Nc6 {[%emt 0:00:00]} 3. Bb5 {[%emt 0:00:00]} a6 {[%emt 0:00:00]} 4. Ba4 {[%emt 0:00:00]} Nf6 {[%emt 0:00:00]} 5. Nc3 {[%emt 0:00:00]} d6 {[%emt 0:06:29]} 6. Bxc6+ {[%emt 0:06:01]} bxc6 {[%emt 0:00:06]} 7. d4 {[%emt 0:00:03]} exd4 {[%emt 0:00:57]} 8. Qxd4 {[%emt 0:00:33]} c5 {[%emt 0:03:39]} 9. Qa4+ {[%emt 0:04:09]} Bd7 {[%emt 0:01:54]} 10. Qa5 {[%emt 0:00:29]} Be7 {[%emt 0:01:38]} 11. e5 {[%emt 0:06:30]} Ng4 {[%emt 0:04:41]} 12. h3 {[%emt 0:20:29]} Nxe5 {[%emt 0:01:33]} 13. Nxe5 {[%emt 0:00:04]} dxe5 {[%emt 0:00:09]} 14. Be3 {[%emt 0:00:24]} Bc6 {[%emt 0:09:03]} 15. O-O {[%emt 0:20:27]} Bd6 {[%emt 0:14:20]} 16. Rad1 {[%emt 0:04:10]} c4 {[%emt 0:14:51]} 17. Bc5 {[%emt 0:14:58]} O-O {[%emt 0:06:26]} 18. Qa3 {[%emt 0:00:42]} Qg5 {[%emt 0:01:56]} 19. Nd5 {[%emt 0:06:55]} Rfd8 {[%emt 0:04:17]} 20. h4 {[%emt 0:02:32]} Qxh4 {[%emt 0:03:36]} 21. Ne7+ {[%emt 0:01:06]} Qxe7 {[%emt 0:00:28]} 0-1

[Event "79th UKR-ch Women 2019"]
[Site "Lutsk"]
[Date "2019.12.14"]
[Round "5.1"]
[White "Osmak, Iulija"]
[Black "Tsirulnik, Maritsa"]
[Result "1-0"]
[ECO "D31"]
[WhiteElo "2388"]
[BlackElo "2119"]
[Annotator "NA"]
[PlyCount "81"]
[EventDate "2019.12.10"]
[EventType "tourn"]
[EventCountry "UKR"]
[SourceTitle "playchess.com"]
[Source "ChessBase"]
[SourceQuality "1"]
[TimeControl "40/5400+30:1800+30"]

1. d4 {[%emt 0:00:13]} d5 {[%emt 0:00:00]} 2. c4 {[%emt 0:00:06]} e6 {[%emt 0:00:00]} 3. Nc3 {[%emt 0:00:03]} a6 {[%emt 0:00:00]} 4. cxd5 {[%emt 0:00:12]} exd5 {[%emt 0:00:00]} 5. Nf3 {[%emt 0:00:03]} Be6 {[%emt 0:00:01]} 6. Ng5 {[%emt 0:01:28]} c5 {[%emt 0:00:34]} 7. Nxe6 {[%emt 0:13:38]} ({White should try} 7. e4 $16) 7... fxe6 {[%emt 0:00:06]} 8. g3 {[%emt 0:03:28]} Nf6 {[%emt 0:08:17]} 9. Bg2 {[%emt 0:02:46]} Nc6 {[%emt 0:03:48]} 10. dxc5 {[%emt 0:01:13]} Bxc5 {[%emt 0:00:05]} 11. O-O {[%emt 0:00:32]} O-O {[%emt 0:00:21]} 12. Bg5 {[%emt 0:08:11]} h6 {[%emt 0:06:37]} 13. Bd2 {[%emt 0:05:15]} Qd7 {[%emt 0:05:10]} 14. Rc1 $11 {[%emt 0:02:05]} Ba7 {[%emt 0:01:06]} 15. Na4 {[%emt 0:03:24]} Qe7 {[%emt 0:09:06]} 16. e3 {[%emt 0:04:34]} Rfd8 {[%emt 0:06:53]} 17. Qb3 {[%emt 0:05:05]} Ne5 {[%emt 0:06:19]} 18. Bb4 {[%emt 0:08:03]} Qf7 {[%emt 0:00:21]} 19. Qc3 {[%emt 0:10:40]} Nfd7 {[%emt 0:06:21]} 20. Qc2 {[%emt 0:06:02]} Nf3+ {[%emt 0:07:15]} 21. Kh1 {[%emt 0:05:15]} b5 {[%emt 0:06:30]} 22. Qd1 {[%emt 0:02:40]} Nde5 {[%emt 0:06:42]} 23. Nc5 {[%emt 0:01:02]} d4 {[%emt 0:06:29]} 24. e4 {[%emt 0:06:32]} Bb6 {[%emt 0:05:42]} 25. Nd3 {[%emt 0:02:51]} Nxd3 {[%emt 0:06:32]} 26. Qxd3 {[%emt 0:00:03]} Ne5 {[%emt 0:00:04]} 27. Qd1 {[%emt 0:00:09]} a5 {[%emt 0:01:01]} 28. Bc5 {[%emt 0:00:38]} Qa7 {[%emt 0:00:15]} 29. Qh5 {[%emt 0:03:14]} Nd3 {[%emt 0:01:08]} 30. Bxb6 {[%emt 0:00:07]} Qxb6 {[%emt 0:00:03]} 31. Rc2 {[%emt 0:01:06]} Rac8 {[%emt 0:01:05]} 32. Rd2 {[%emt 0:00:12]} Nb4 {[%emt 0:02:40]} 33. a3 {[%emt 0:02:14]} Rc5 {[%emt 0:00:24]} 34. e5 {[%emt 0:00:28]} Nc6 {[%emt 0:00:18]} 35. f4 {[%emt 0:00:09]} Ne7 {[%emt 0:00:52]} 36. Rfd1 {[%emt 0:01:33]} Rc7 {[%emt 0:02:45]} 37. Be4 {[%emt 0:00:21]} b4 {[%emt 0:01:19]} 38. Rxd4 {[%emt 0:01:02]} Rcc8 {[%emt 0:00:15]} 39. Rd6 {[%emt 0:01:26]} Rxd6 {[%emt 0:00:14]} 40. exd6 {[%emt 0:00:00]} Qe3 {[%emt 0:00:00]} 41. Qe5 {[%emt 0:01:56]} 1-0

[Event "79th UKR-ch Women 2019"]
[Site "Lutsk"]
[Date "2019.12.14"]
[Round "5.2"]
[White "Berdnyk, Mariia"]
[Black "Rakhmangulova, Anastasiya"]
[Result "1-0"]
[ECO "D11"]
[WhiteElo "2319"]
[BlackElo "2215"]
[Annotator "NA"]
[PlyCount "55"]
[EventDate "2019.12.10"]
[EventType "tourn"]
[EventCountry "UKR"]
[SourceTitle "playchess.com"]
[Source "ChessBase"]
[SourceQuality "1"]
[TimeControl "40/5400+30:1800+30"]

1. d4 {[%emt 0:00:00]} d5 {[%emt 0:00:00]} 2. c4 {[%emt 0:00:00]} c6 {[%emt 0:00:00]} 3. Nf3 {[%emt 0:00:00]} Nf6 {[%emt 0:00:00]} 4. Qc2 {[%emt 0:00:00]} dxc4 {[%emt 0:00:28]} 5. Qxc4 {[%emt 0:00:00]} Bf5 {[%emt 0:00:58]} 6. Bf4 {[%emt 0:00:01]} e6 {[%emt 0:04:24]} 7. g3 {[%emt 0:00:23]} Nbd7 {[%emt 0:22:22]} 8. Nc3 $11 {[%emt 0:02:23]} Nb6 {[%emt 0:01:41]} 9. Qb3 {[%emt 0:00:12]} a5 {[%emt 0:01:00]} 10. Bg2 {[%emt 0:14:08]} a4 {[%emt 0:01:18]} 11. Qd1 {[%emt 0:00:04]} Nc4 {[%emt 0:19:04]} 12. Nxa4 {[%emt 0:13:24]} Qa5+ {[%emt 0:02:37]} 13. Nc3 {[%emt 0:00:12]} Nxb2 {[%emt 0:10:35]} 14. Qb3 {[%emt 0:01:50]} Na4 {[%emt 0:01:25]} 15. Bd2 {[%emt 0:00:45]} Nxc3 {[%emt 0:00:51]} 16. Bxc3 {[%emt 0:02:07]} Qc7 {[%emt 0:04:40]} 17. Nd2 {[%emt 0:08:02]} Ra3 {[%emt 0:07:59]} 18. Qc4 {[%emt 0:00:57]} Nd5 {[%emt 0:08:24]} 19. Bb2 {[%emt 0:00:24]} Nb6 {[%emt 0:00:56]} 20. Qc1 {[%emt 0:00:54]} Ra6 {[%emt 0:03:00]} 21. e4 {[%emt 0:00:51]} Bg6 {[%emt 0:00:14]} 22. O-O {[%emt 0:00:28]} Na4 {[%emt 0:00:30]} 23. d5 {[%emt 0:02:48]} Nxb2 {[%emt 0:00:18]} 24. Qxb2 {[%emt 0:00:07]} e5 {[%emt 0:04:13]} 25. Nc4 {[%emt 0:04:26]} cxd5 {[%emt 0:01:38]} 26. exd5 {[%emt 0:01:35]} Qxc4 {[%emt 0:02:21]} 27. Rac1 {[%emt 0:01:27]} Qd4 {[%emt 0:01:44]} 28. Rc8+ {[%emt 0:00:22]} 1-0

[Event "79th UKR-ch Women 2019"]
[Site "Lutsk"]
[Date "2019.12.14"]
[Round "5.3"]
[White "Martynkova, Olena"]
[Black "Babiy, Olga"]
[Result "1-0"]
[ECO "D02"]
[WhiteElo "2243"]
[BlackElo "2258"]
[Annotator "NA"]
[PlyCount "83"]
[EventDate "2019.12.10"]
[EventType "tourn"]
[EventCountry "UKR"]
[SourceTitle "playchess.com"]
[Source "ChessBase"]
[SourceQuality "1"]
[TimeControl "40/5400+30:1800+30"]

1. d4 {[%emt 0:00:00]} d5 {[%emt 0:05:20]} 2. Nf3 {[%emt 0:01:13]} e6 {[%emt 0:00:11]} 3. c4 {[%emt 0:01:15]} a6 {[%emt 0:00:13]} 4. g3 {[%emt 0:04:17]} dxc4 {[%emt 0:00:39]} 5. Bg2 {[%emt 0:01:26]} Nc6 {[%emt 0:00:26]} 6. O-O {[%emt 0:03:04]} Rb8 {[%emt 0:00:43]} 7. e4 {[%emt 0:09:24]} Nf6 $11 {[%emt 0:01:07]} 8. Nc3 {[%emt 0:04:50]} Be7 {[%emt 0:02:47]} 9. Qe2 {[%emt 0:10:42]} b5 {[%emt 0:01:40]} 10. Rd1 {[%emt 0:10:01]} O-O {[%emt 0:00:40]} 11. Bf4 {[%emt 0:10:28]} Nb4 {[%emt 0:02:02]} 12. Ne1 {[%emt 0:04:53]} Re8 {[%emt 0:06:40]} 13. a3 {[%emt 0:02:38]} Nc6 {[%emt 0:02:07]} 14. d5 {[%emt 0:07:35]} exd5 {[%emt 0:01:26]} 15. e5 {[%emt 0:08:23]} Bd6 {[%emt 0:19:33]} 16. exd6 {[%emt 0:02:47]} Rxe2 {[%emt 0:09:45]} 17. dxc7 {[%emt 0:00:05]} Qe8 {[%emt 0:00:09]} 18. cxb8=Q {[%emt 0:00:39]} Nxb8 {[%emt 0:00:07]} 19. Nxe2 {[%emt 0:00:56]} Qxe2 {[%emt 0:01:23]} 20. Bxb8 {[%emt 0:00:16]} Qxb2 {[%emt 0:05:43]} 21. Ba7 {[%emt 0:04:35]} Qe5 {[%emt 0:05:21]} 22. Bd4 {[%emt 0:01:30]} Qf5 {[%emt 0:00:06]} 23. Bxf6 {[%emt 0:00:50]} Qxf6 {[%emt 0:00:06]} 24. Bxd5 {[%emt 0:00:56]} h5 {[%emt 0:00:11]} 25. Ng2 {[%emt 0:03:52]} Bf5 {[%emt 0:05:23]} 26. Ne3 {[%emt 0:05:00]} Bd3 {[%emt 0:00:16]} 27. a4 {[%emt 0:00:16]} h4 {[%emt 0:02:27]} 28. axb5 {[%emt 0:00:27]} axb5 {[%emt 0:00:03]} 29. Ra7 {[%emt 0:00:28]} Bg6 {[%emt 0:00:06]} 30. Rb7 {[%emt 0:01:12]} Qa6 {[%emt 0:01:52]} 31. Bxf7+ {[%emt 0:01:00]} Bxf7 {[%emt 0:00:12]} 32. Rd8+ {[%emt 0:00:04]} Kh7 {[%emt 0:00:37]} 33. Rxf7 {[%emt 0:00:05]} h3 {[%emt 0:00:26]} 34. Rdd7 {[%emt 0:01:18]} Qa1+ {[%emt 0:00:18]} 35. Rd1 {[%emt 0:00:31]} Qe5 {[%emt 0:03:36]} 36. Rf5 {[%emt 0:00:25]} Qe8 {[%emt 0:00:07]} 37. Rb1 {[%emt 0:00:30]} b4 {[%emt 0:01:04]} 38. Rxb4 {[%emt 0:00:31]} c3 {[%emt 0:00:32]} 39. Rc5 {[%emt 0:00:33]} Qa8 {[%emt 0:00:13]} 40. Rh4+ {[%emt 0:00:00]} Kg6 {[%emt 0:00:00]} 41. Rxh3 {[%emt 0:02:22]} Qa1+ {[%emt 0:01:26]} 42. Nf1 {[%emt 0:00:32]} 1-0

[Event "79th UKR-ch Women 2019"]
[Site "Lutsk"]
[Date "2019.12.14"]
[Round "5.4"]
[White "Hrebenshchykova, Yelyzaveta"]
[Black "Doluhanova, Evgeniya"]
[Result "1/2-1/2"]
[ECO "C67"]
[WhiteElo "2029"]
[BlackElo "2293"]
[Annotator "NA"]
[PlyCount "97"]
[EventDate "2019.12.10"]
[EventType "tourn"]
[EventCountry "UKR"]
[SourceTitle "playchess.com"]
[Source "ChessBase"]
[SourceQuality "1"]
[TimeControl "40/5400+30:1800+30"]

1. e4 {[%emt 0:00:00]} e5 {[%emt 0:00:00]} 2. Nf3 {[%emt 0:00:00]} Nc6 {[%emt 0:00:00]} 3. Bb5 {[%emt 0:00:00]} Nf6 {[%emt 0:00:00]} 4. O-O {[%emt 0:00:00]} Nxe4 {[%emt 0:00:11]} 5. d4 {[%emt 0:00:06]} Nd6 {[%emt 0:00:33]} 6. dxe5 {[%emt 0:01:53]} Nxb5 {[%emt 0:00:16]} 7. a4 {[%emt 0:00:04]} Nbd4 {[%emt 0:00:13]} 8. Nxd4 {[%emt 0:01:07]} d5 {[%emt 0:00:58]} 9. c3 {[%emt 0:41:19]} Be7 {[%emt 0:05:10]} 10. f4 {[%emt 0:03:29]} f6 {[%emt 0:01:39]} 11. exf6 {[%emt 0:03:20]} Bxf6 {[%emt 0:01:52]} 12. Nxc6 {[%emt 0:03:20]} bxc6 $14 {[%emt 0:00:11]} 13. Re1+ {[%emt 0:00:12]} Kf7 {[%emt 0:01:01]} 14. Be3 {[%emt 0:03:38]} Re8 {[%emt 0:02:13]} 15. Na3 {[%emt 0:04:40]} Bf5 {[%emt 0:05:36]} 16. Nc2 {[%emt 0:04:38]} Qd7 {[%emt 0:02:18]} 17. a5 {[%emt 0:04:42]} Rab8 {[%emt 0:04:43]} 18. Qc1 {[%emt 0:10:58]} a6 {[%emt 0:08:06]} 19. Nd4 {[%emt 0:05:06]} Be4 {[%emt 0:15:03]} 20. b4 {[%emt 0:00:33]} Bh4 {[%emt 0:06:23]} 21. Rf1 {[%emt 0:02:23]} Re7 {[%emt 0:10:23]} 22. f5 {[%emt 0:01:32]} Bd3 {[%emt 0:04:47]} 23. Rf3 {[%emt 0:00:54]} Kg8 {[%emt 0:05:58]} 24. Qd2 {[%emt 0:00:53]} Be4 {[%emt 0:01:11]} 25. Rff1 {[%emt 0:00:50]} Rf7 {[%emt 0:05:12]} 26. Bg5 {[%emt 0:02:25]} Bxg5 {[%emt 0:03:27]} 27. Qxg5 {[%emt 0:00:04]} c5 {[%emt 0:02:17]} 28. bxc5 {[%emt 0:02:17]} Rb2 {[%emt 0:00:18]} 29. Rf2 {[%emt 0:00:03]} Rxf2 {[%emt 0:01:01]} 30. Kxf2 {[%emt 0:00:02]} Bxf5 {[%emt 0:00:52]} 31. Kg1 {[%emt 0:00:09]} h6 {[%emt 0:02:48]} 32. Qg3 {[%emt 0:01:01]} Qe7 {[%emt 0:02:31]} 33. c6 {[%emt 0:00:29]} Be4 {[%emt 0:02:54]} 34. Rf1 {[%emt 0:01:21]} Rxf1+ {[%emt 0:01:30]} 35. Kxf1 {[%emt 0:00:02]} Qa3 {[%emt 0:01:07]} 36. Qxc7 {[%emt 0:02:26]} Qxc3 {[%emt 0:01:38]} 37. Ne2 {[%emt 0:00:44]} Qf6+ {[%emt 0:01:33]} 38. Ke1 {[%emt 0:01:09]} Qa1+ {[%emt 0:02:07]} 39. Kf2 {[%emt 0:00:17]} Qf6+ {[%emt 0:00:13]} 40. Ke1 {[%emt 0:00:00]} Qa1+ {[%emt 0:00:00]} 41. Kf2 {[%emt 0:11:08]} Qf6+ {[%emt 0:01:35]} 42. Ke3 {[%emt 0:00:57]} Bxg2 {[%emt 0:05:30]} 43. Qb8+ {[%emt 0:01:38]} Kh7 {[%emt 0:00:51]} 44. c7 {[%emt 0:00:11]} d4+ {[%emt 0:05:14]} 45. Nxd4 {[%emt 0:10:50]} Qe5+ {[%emt 0:01:09]} 46. Kf2 {[%emt 0:00:43]} Qxd4+ {[%emt 0:15:22]} 47. Kxg2 {[%emt 0:00:04]} Qd2+ {[%emt 0:00:04]} 48. Kf3 {[%emt 0:00:18]} Qd3+ {[%emt 0:00:08]} 49. Kf2 {[%emt 0:00:13]} 1/2-1/2

[Event "79th UKR-ch Women 2019"]
[Site "Lutsk"]
[Date "2019.12.14"]
[Round "5.5"]
[White "Dolzhykova, Kateryna"]
[Black "Zhukova, Natalia"]
[Result "1/2-1/2"]
[ECO "C68"]
[WhiteElo "2164"]
[BlackElo "2324"]
[Annotator "NA"]
[PlyCount "46"]
[EventDate "2019.12.10"]
[EventType "tourn"]
[EventCountry "UKR"]
[SourceTitle "playchess.com"]
[Source "ChessBase"]
[SourceQuality "1"]
[TimeControl "40/5400+30:1800+30"]

1. e4 {[%emt 0:00:00]} e5 {[%emt 0:00:00]} 2. Nf3 {[%emt 0:00:00]} Nc6 {[%emt 0:00:00]} 3. Bb5 {[%emt 0:00:00]} a6 {[%emt 0:00:00]} 4. Bxc6 {[%emt 0:00:02]} dxc6 {[%emt 0:00:13]} 5. O-O {[%emt 0:00:19]} Bd6 {[%emt 0:01:01]} 6. d4 {[%emt 0:00:53]} exd4 {[%emt 0:00:11]} 7. Qxd4 {[%emt 0:01:20]} f6 {[%emt 0:00:20]} 8. Be3 {[%emt 0:02:52]} Ne7 {[%emt 0:02:38]} 9. Nbd2 {[%emt 0:03:01]} Be6 {[%emt 0:00:34]} 10. Rad1 {[%emt 0:01:18]} Ng6 {[%emt 0:37:07]} 11. Nc4 $11 {[%emt 0:09:12]} Bxc4 {[%emt 0:05:49]} 12. Qxc4 {[%emt 0:00:07]} Qe7 {[%emt 0:00:22]} 13. b4 {[%emt 0:09:35]} O-O-O {[%emt 0:03:34]} 14. Bc5 {[%emt 0:10:05]} Rhe8 {[%emt 0:09:06]} 15. Rfe1 {[%emt 0:05:59]} Ne5 {[%emt 0:14:29]} 16. Nxe5 {[%emt 0:01:59]} Qxe5 {[%emt 0:00:07]} 17. Bxd6 {[%emt 0:01:46]} Rxd6 {[%emt 0:00:30]} 18. Rxd6 {[%emt 0:02:06]} Qxd6 {[%emt 0:02:00]} 19. Qf7 {[%emt 0:06:54]} Qe7 {[%emt 0:01:55]} 20. Qxe7 {[%emt 0:01:35]} Rxe7 {[%emt 0:00:03]} 21. f4 {[%emt 0:00:40]} c5 {[%emt 0:00:14]} 22. bxc5 {[%emt 0:01:21]} Kd7 {[%emt 0:00:09]} 23. Kf2 {[%emt 0:01:06]} Kc6 {[%emt 0:00:05]} 1/2-1/2

[Event "79th UKR-ch Women 2019"]
[Site "Lutsk"]
[Date "2019.12.16"]
[Round "6"]
[White "Osmak, Iulija"]
[Black "Berdnyk, Mariia"]
[Result "1-0"]
[ECO "B38"]
[WhiteElo "2388"]
[BlackElo "2319"]
[Annotator "NA"]
[PlyCount "109"]
[EventDate "2019.??.??"]
[EventCountry "UKR"]
[SourceTitle "playchess.com"]
[Source "ChessBase"]
[SourceQuality "1"]
[TimeControl "40/5400+30:1800+30"]

1. d4 Nf6 2. c4 g6 3. Nc3 Bg7 4. e4 d6 5. h3 O-O 6. Be3 c5 7. Nf3 cxd4 8. Nxd4 Nc6 9. Be2 Nxd4 10. Bxd4 Bd7 11. O-O a6 12. a4 Bc6 13. a5 Qd7 14. Nd5 Bxd5 15. exd5 e5 16. dxe6 fxe6 17. Bf3 Rae8 18. Qb3 e5 19. Be3 e4 20. Be2 Kh8 21. Rad1 Re6 22. Rd2 Qe7 23. Rfd1 h6 24. Qa3 Ne8 25. c5 Be5 26. Bc4 Ref6 27. Bxh6 Rxf2 28. Rxf2 Rxf2 29. Kxf2 Qh4+ 30. Kg1 Qxh6 31. Bf1 e3 32. Qa4 Qf8 33. Qh4+ Kg7 34. Be2 Nf6 35. Qg5 Qe7 36. Bd3 Qe8 37. cxd6 Bxd6 38. Bxg6 Qe5 39. Qxe5 Bxe5 40. Bd3 Nh5 41. Bc4 Ng3 42. Rd7+ Kg6 43. Rxb7 Bd4 44. Kh2 e2 45. Bxe2 Nxe2 46. b4 Be5+ 47. g3 Nxg3 48. Rb6+ Kf5 49. Rxa6 Kf4 50. Kg2 Nf5 51. b5 Ne3+ 52. Kf2 Nd1+ 53. Ke1 Nc3 54. b6 Ke3 55. b7 1-0

[Event "79th UKR-ch Women 2019"]
[Site "Lutsk"]
[Date "2019.12.16"]
[Round "6"]
[White "Doluhanova, Evgeniya"]
[Black "Dolzhykova, Kateryna"]
[Result "0-1"]
[ECO "A06"]
[WhiteElo "2293"]
[BlackElo "2164"]
[Annotator "NA"]
[PlyCount "68"]
[EventDate "2019.??.??"]
[EventCountry "UKR"]
[SourceTitle "playchess.com"]
[Source "ChessBase"]
[SourceQuality "1"]
[TimeControl "40/5400+30:1800+30"]

1. Nf3 d5 2. b3 c6 3. Bb2 e6 4. d3 f5 5. Nbd2 Nf6 6. e4 dxe4 (6... Be7 $11 {remains equal.}) 7. dxe4 $16 fxe4 8. Ne5 Bb4 9. c3 Bc5 10. Qe2 Qc7 11. Ng4 Nxg4 12. Qxg4 e3 13. fxe3 O-O 14. O-O-O Bxe3 15. Bc4 Na6 16. Rhf1 Rxf1 17. Rxf1 Qd6 18. Qf3 Bxd2+ 19. Kc2 Bd7 20. Rd1 Rf8 21. Qe2 Qxh2 22. Rxd2 Be8 23. Qxe6+ Kh8 24. Ba3 Bg6+ 25. Kb2 Qf4 26. Rd1 Re8 27. Be7 b5 28. Be2 Nc7 29. Qd7 Qe4 30. Bd3 Qxe7 31. Bxg6 hxg6 32. Qh3+ Kg8 33. Rh1 Qe2+ 34. Ka1 Qh5 0-1

[Event "79th UKR-ch Women 2019"]
[Site "Lutsk"]
[Date "2019.12.16"]
[Round "6"]
[White "Babiy, Olga"]
[Black "Hrebenshchykova, Yelyzaveta"]
[Result "0-1"]
[ECO "B54"]
[WhiteElo "2258"]
[BlackElo "2029"]
[Annotator "NA"]
[PlyCount "90"]
[EventDate "2019.??.??"]
[EventCountry "UKR"]
[SourceTitle "playchess.com"]
[Source "ChessBase"]
[SourceQuality "1"]
[TimeControl "40/5400+30:1800+30"]

1. e4 c5 2. Nf3 e6 3. d4 cxd4 4. Nxd4 Nc6 5. Nc3 d6 6. g4 h6 7. Bb5 Bd7 8. Be3 a6 9. Bxc6 bxc6 10. Qe2 a5 11. a4 e5 12. Nb3 Be7 13. O-O-O Qc8 14. h3 Be6 15. Nd2 Qb7 16. f4 Rb8 17. b3 Qb4 18. Ndb1 Nf6 19. f5 Bc8 20. Bd2 Qb6 21. h4 Ba6 22. Qf3 Nd7 23. Be3 Nc5 24. Qf2 Qb4 25. Bxc5 dxc5 26. Na2 Qb7 27. Rh3 c4 28. Qd2 Qc7 29. Qc3 cxb3 30. cxb3 O-O 31. g5 hxg5 32. hxg5 Bxg5+ 33. Kb2 Qb6 34. Na3 Qf2+ 35. Ka1 Rfd8 36. Rdh1 f6 37. Rh8+ Kf7 38. Qxc6 Qd4+ 39. Nc3 Rb6 40. Qc7+ Rd7 41. Nc2 Rxc7 42. Nxd4 Rxc3 43. Rd8 Bh6 44. Ne6 Rcxb3 45. Ka2 Bc4 0-1

[Event "79th UKR-ch Women 2019"]
[Site "Lutsk"]
[Date "2019.12.16"]
[Round "6"]
[White "Rakhmangulova, Anastasiya"]
[Black "Martynkova, Olena"]
[Result "1-0"]
[ECO "B22"]
[WhiteElo "2215"]
[BlackElo "2243"]
[Annotator "NA"]
[PlyCount "71"]
[EventDate "2019.??.??"]
[EventCountry "UKR"]
[SourceTitle "playchess.com"]
[Source "ChessBase"]
[SourceQuality "1"]
[TimeControl "40/5400+30:1800+30"]

1. e4 c5 2. Nf3 e6 3. c3 Nf6 4. e5 Nd5 5. d4 cxd4 6. cxd4 d6 7. Bc4 Nc6 8. O-O Be7 9. Qe2 O-O 10. Rd1 Na5 11. Bb5 a6 12. Bd3 Nb4 13. Nc3 Nxd3 14. Rxd3 d5 15. h4 b5 16. Ng5 h6 17. Nh3 Bxh4 18. Qh5 Kh7 19. g4 Be7 20. g5 Bd7 21. Rg3 Be8 22. gxh6 g6 23. Qg4 Nc6 24. Ng5+ Bxg5 25. Bxg5 f5 26. Qh4 Qb6 27. Ne2 f4 28. Rd3 Rf5 29. Rad1 Nd8 30. Bxf4 Nf7 31. Qe7 Qd8 32. Qf8 Rg5+ 33. Rg3 Rxg3+ 34. fxg3 Nxh6 35. Qxh6+ Kg8 36. Bg5 1-0

[Event "79th UKR-ch Women 2019"]
[Site "Lutsk"]
[Date "2019.12.16"]
[Round "6"]
[White "Tsirulnik, Maritsa"]
[Black "Zhukova, Natalia"]
[Result "1/2-1/2"]
[ECO "A33"]
[WhiteElo "2119"]
[BlackElo "2324"]
[Annotator "NA"]
[PlyCount "66"]
[EventDate "2019.??.??"]
[EventCountry "UKR"]
[SourceTitle "playchess.com"]
[Source "ChessBase"]
[SourceQuality "1"]
[TimeControl "40/5400+30:1800+30"]

1. d4 Nf6 2. c4 e6 3. Nf3 c5 4. Nc3 cxd4 5. Nxd4 Nc6 6. g3 Qb6 7. Nb3 $11 Ne5 8. e4 Bb4 9. Qe2 d6 10. f4 Nc6 11. Be3 Bxc3+ 12. bxc3 Qc7 13. Bg2 e5 14. c5 dxc5 15. Bxc5 exf4 16. O-O Bg4 17. Qf2 f3 18. Bxf3 Bxf3 19. Qxf3 O-O-O 20. Bd4 h5 21. Qf5+ Kb8 22. Rab1 Ka8 23. Bxf6 gxf6 24. Qxf6 Ne5 25. Rbd1 Ng4 26. Rxd8+ Rxd8 27. Qg5 Re8 28. Qc5 Qxc5+ 29. Nxc5 b6 30. Nd3 Rxe4 31. Nf2 Rc4 32. Nxg4 hxg4 33. Rxf7 Rxc3 1/2-1/2

[Event "79th UKR-ch Women 2019"]
[Site "Lutsk"]
[Date "2019.12.17"]
[Round "7"]
[White "Zhukova, Natalia"]
[Black "Doluhanova, Evgeniya"]
[Result "1-0"]
[ECO "E04"]
[WhiteElo "2324"]
[BlackElo "2293"]
[Annotator "NA"]
[PlyCount "71"]
[EventDate "2019.??.??"]
[EventCountry "UKR"]
[SourceTitle "playchess.com"]
[Source "ChessBase"]
[SourceQuality "1"]
[TimeControl "40/5400+30:1800+30"]

1. d4 Nf6 2. c4 e6 3. g3 d5 4. Bg2 dxc4 5. Nf3 c5 6. O-O Nc6 7. dxc5 Qxd1 8. Rxd1 Bxc5 9. Nbd2 c3 10. bxc3 Bd7 11. Nb3 Bb6 12. Nfd4 Nd8 (12... O-O $11) 13. a4 a6 $1 14. a5 Ba7 15. Ba3 $14 Rc8 16. Bd6 h5 17. h3 Nd5 18. Nf5 exf5 19. Bxd5 h4 20. c4 hxg3 21. Bxg3 Rxh3 22. Nd4 g5 23. e3 Bxd4 24. Rxd4 Ne6 25. Rd2 f4 26. Kg2 Nc5 27. exf4 gxf4 28. Re1+ Kf8 29. Bxf4 Nd3 30. Bd6+ Kg7 31. Re7 Bf5 32. Rxf7+ Kg6 33. Rxf5 Rch8 34. Be4 Ne1+ 35. Kf1 Rh1+ 36. Ke2 1-0

[Event "79th UKR-ch Women 2019"]
[Site "Lutsk"]
[Date "2019.12.17"]
[Round "7"]
[White "Berdnyk, Mariia"]
[Black "Tsirulnik, Maritsa"]
[Result "1-0"]
[ECO "A62"]
[WhiteElo "2319"]
[BlackElo "2119"]
[Annotator "NA"]
[PlyCount "59"]
[EventDate "2019.??.??"]
[EventCountry "UKR"]
[SourceTitle "playchess.com"]
[Source "ChessBase"]
[SourceQuality "1"]
[TimeControl "40/5400+30:1800+30"]

1. d4 Nf6 2. c4 e6 3. g3 c5 4. d5 exd5 5. cxd5 d6 6. Nc3 g6 7. Bg2 Bg7 8. Nf3 O-O 9. O-O Re8 10. Bf4 h6 11. h3 g5 12. Be3 Bf5 13. h4 g4 (13... Rxe3 $5 14. fxe3 Qe7 $14) 14. Nd2 Qd7 (14... Rxe3 $14 15. fxe3 Bg6) 15. a4 Na6 16. Nc4 Ne4 {[#]} 17. Nb5 (17. Bxe4 $1 $18 {has better winning chances.} Bxe4 18. Bf4) 17... Bf8 18. Bf4 Nb4 $16 19. f3 gxf3 20. exf3 Nf6 21. Nbxd6 Red8 22. Be5 Nfxd5 23. f4 Bc2 24. Qd2 Nb6 25. Qc3 Nxc4 26. Nxc4 Qg4 27. Ne3 Qxg3 28. Rf3 Qxh4 29. Nxc2 Nxc2 30. Rg3+ 1-0

[Event "79th UKR-ch Women 2019"]
[Site "Lutsk"]
[Date "2019.12.17"]
[Round "7"]
[White "Martynkova, Olena"]
[Black "Osmak, Iulija"]
[Result "1/2-1/2"]
[ECO "D02"]
[WhiteElo "2243"]
[BlackElo "2388"]
[Annotator "NA"]
[PlyCount "64"]
[EventDate "2019.??.??"]
[EventCountry "UKR"]
[SourceTitle "playchess.com"]
[Source "ChessBase"]
[SourceQuality "1"]
[TimeControl "40/5400+30:1800+30"]

1. d4 e6 2. g3 d5 3. Nf3 Nf6 4. Bg2 Nbd7 5. O-O b5 6. a4 b4 7. c4 bxc3 8. bxc3 Ba6 9. Nbd2 c5 10. Ba3 Rc8 11. Rc1 Be7 12. c4 O-O 13. cxd5 Nxd5 14. Ne4 $11 Qa5 15. Qe1 Qxa4 16. Bxc5 Nxc5 17. Nxc5 Bxc5 18. dxc5 Qb5 19. Nd4 Qb2 20. Qa5 Qxd4 21. Qxa6 Rxc5 22. Rxc5 Qxc5 23. Bxd5 exd5 24. Ra1 Qe7 25. e3 Rb8 26. Qxa7 Rb1+ 27. Kg2 Qe4+ 28. Kh3 Qf5+ 29. Kg2 Qe4+ 30. Kh3 Qf5+ 31. Kg2 Qe4+ 32. Kh3 Qf5+ 1/2-1/2

[Event "79th UKR-ch Women 2019"]
[Site "Lutsk"]
[Date "2019.12.17"]
[Round "7"]
[White "Dolzhykova, Kateryna"]
[Black "Babiy, Olga"]
[Result "1/2-1/2"]
[ECO "C00"]
[WhiteElo "2164"]
[BlackElo "2258"]
[Annotator "NA"]
[PlyCount "68"]
[EventDate "2019.??.??"]
[EventCountry "UKR"]
[SourceTitle "playchess.com"]
[Source "ChessBase"]
[SourceQuality "1"]
[TimeControl "40/5400+30:1800+30"]

1. e4 c5 2. Nf3 e6 3. g3 Nc6 4. Bg2 Nf6 5. Qe2 d6 6. O-O Be7 7. c3 e5 {C00: French: Unusual White 2nd moves} 8. Rd1 (8. Na3 O-O 9. Nc2 Re8 10. Rd1 Bf8 11. d3 b5 12. a4 b4 13. cxb4 cxb4 {0-1 (23) Vachier Lagrave,M (2795)-Grischuk,A (2750) chess.com INT 2017}) 8... Bg4 9. Na3 O-O 10. Nc2 $146 ({Predecessor:} 10. h3 Bh5 11. d3 Re8 12. Nc4 h6 {½-½ (58) Van Foreest,J (2455)-Handke,F (2546) Germany 2014}) 10... Re8 11. Ne3 Bh5 12. Nf5 Bf8 13. d3 d5 14. exd5 Nxd5 15. Qe4 Nf6 16. Qa4 Qd7 17. Ne3 Bxf3 18. Bxf3 Nd4 19. Qxd7 Nxf3+ 20. Kg2 Nh4+ 21. Kh3 Nxd7 22. Kxh4 Rad8 23. b3 Nf6 $15 24. Bb2 Rd7 25. Kh3 Red8 26. c4 Rxd3 27. Rxd3 Rxd3 28. Bxe5 Ne4 29. Kg2 Rd2 30. Kf3 Ng5+ 31. Kg2 Ne4 32. Kf3 Ng5+ 33. Kg2 Ne4 34. Kf3 Ng5+ {Ke4} 1/2-1/2